[Event "Icelandic Open 2019"]
[Site "Akureyri"]
[Date "2019.05.25"]
[Round "1.1"]
[White "Sokolov, Ivan"]
[Black "Ruelland, Geoffrey"]
[Result "1-0"]
[ECO "D03"]
[WhiteElo "2593"]
[BlackElo "1955"]
[Annotator "RC"]
[PlyCount "73"]
[EventDate "2019.05.25"]
[EventType "swiss"]
[EventCountry "ISL"]
[SourceTitle "playchess.com"]
[Source "ChessBase"]
[SourceQuality "1"]
[TimeControl "40/5400+30:1800+30"]

1. d4 {[%emt 0:00:00]} Nf6 {[%emt 0:00:00]} 2. Nf3 {[%emt 0:00:00]} g6 {[%emt 0:00:05]} 3. Bg5 {[%emt 0:00:05]} Ne4 {[%emt 0:00:38]} 4. Bh4 {[%emt 0:00:54]} Bg7 {[%emt 0:01:00]} 5. e3 {[%emt 0:02:43]} d5 {[%emt 0:02:00]} 6. Bd3 {[%emt 0:02:39]} c5 {[%emt 0:03:21]} 7. O-O {[%emt 0:00:38]} Nc6 {[%emt 0:00:41]} 8. c3 {[%emt 0:03:11]} O-O {[%emt 0:05:28]} 9. Na3 {[%emt 0:14:30]} Bg4 {[%emt 0:13:52]} 10. Be2 {[%emt 0:04:35]} Qb6 {[%emt 0:04:31]} 11. Rb1 {[%emt 0:00:03]} Rad8 {[%emt 0:03:45]} 12. Nc2 {[%emt 0:09:08]} Rd7 {[%emt 0:07:53]} 13. h3 {[%emt 0:04:19]} Bf5 {[%emt 0:04:00]} 14. dxc5 {[%emt 0:00:50]} Nxc5 {[%emt 0:00:47]} 15. Nfd4 {[%emt 0:00:56]} Be4 {[%emt 0:02:40]} 16. f3 {[%emt 0:07:39]} Bxc2 {[%emt 0:10:31]} 17. Nxc2 {[%emt 0:00:25]} e5 {[%emt 0:01:06]} 18. Na3 {[%emt 0:21:57]} Ne6 {[%emt 0:04:00]} 19. Bf2 {[%emt 0:00:59]} Rfd8 {[%emt 0:01:22]} 20. Qe1 {[%emt 0:07:43]} Bh6 {[%emt 0:04:13]} 21. Bd3 {[%emt 0:02:50]} e4 {[%emt 0:26:05]} 22. fxe4 {[%emt 0:00:31]} dxe4 {[%emt 0:00:06]} 23. Bxe4 {[%emt 0:00:23]} Ne5 {[%emt 0:00:12]} 24. Bc2 {[%emt 0:04:06]} Rd2 {[%emt 0:01:09]} 25. Kh1 {[%emt 0:00:33]} Qc6 {[%emt 0:01:40]} 26. Rd1 {[%emt 0:03:17]} Rxd1 {[%emt 0:00:11]} 27. Bxd1 {[%emt 0:00:05]} Ng5 {[%emt 0:00:36]} 28. Bh4 {[%emt 0:02:14]} Rd7 {[%emt 0:00:06]} 29. Qg3 {[%emt 0:01:00]} f6 {[%emt 0:00:33]} 30. Bb3+ {[%emt 0:02:03]} Kg7 {[%emt 0:00:09]} 31. Nc2 {[%emt 0:01:34]} Ne4 {[%emt 0:00:18]} 32. Qh2 {[%emt 0:00:29]} Rd2 {[%emt 0:00:52]} 33. Be1 {[%emt 0:02:33]} Rd6 {[%emt 0:01:22]} 34. Bg3 {[%emt 0:01:25]} Nxg3+ {[%emt 0:00:39]} 35. Qxg3 {[%emt 0:00:01]} Rd3 {[%emt 0:00:15]} 36. Nd4 {[%emt 0:00:16]} Qd6 {[%emt 0:00:35]} 37. Nf5+ {[%emt 0:00:02]} 1-0

[Event "Icelandic Open 2019"]
[Site "Akureyri"]
[Date "2019.05.25"]
[Round "1.3"]
[White "Stefansson, Hannes"]
[Black "Arnalds, Stefan"]
[Result "1-0"]
[ECO "B45"]
[WhiteElo "2561"]
[BlackElo "1936"]
[Annotator "RC"]
[PlyCount "60"]
[EventDate "2019.05.25"]
[EventType "swiss"]
[EventCountry "ISL"]
[SourceTitle "playchess.com"]
[Source "ChessBase"]
[SourceQuality "1"]
[TimeControl "40/5400+30:1800+30"]

1. e4 {[%emt 0:00:00]} c5 {[%emt 0:00:28]} 2. Nf3 {[%emt 0:00:00]} e6 {[%emt 0:00:14]} 3. d4 {[%emt 0:00:00]} cxd4 {[%emt 0:00:05]} 4. Nxd4 {[%emt 0:00:07]} Nf6 {[%emt 0:00:27]} 5. Nc3 {[%emt 0:00:18]} Nc6 {[%emt 0:00:50]} 6. Ndb5 {[%emt 0:00:38]} Bb4 {[%emt 0:01:42]} 7. a3 {[%emt 0:00:28]} Bxc3+ {[%emt 0:00:29]} 8. Nxc3 {[%emt 0:00:09]} d5 {[%emt 0:03:38]} 9. exd5 {[%emt 0:00:14]} exd5 {[%emt 0:04:37]} 10. Bd3 {[%emt 0:00:25]} d4 {[%emt 0:16:21]} 11. Qe2+ {[%emt 0:07:20]} Be6 {[%emt 0:10:00]} 12. Ne4 {[%emt 0:00:45]} Nxe4 {[%emt 0:00:40]} 13. Qxe4 {[%emt 0:01:42]} Qd5 {[%emt 0:01:54]} 14. O-O {[%emt 0:01:41]} Qxe4 {[%emt 0:12:25]} 15. Bxe4 {[%emt 0:00:06]} O-O {[%emt 0:04:13]} 16. Re1 {[%emt 0:03:42]} Rac8 {[%emt 0:24:51]} 17. Bg5 {[%emt 0:05:02]} f6 {[%emt 0:09:37]} 18. Bf4 {[%emt 0:02:12]} g5 {[%emt 0:02:35]} 19. Bg3 {[%emt 0:01:41]} Bf7 {[%emt 0:03:50]} 20. f4 {[%emt 0:02:31]} gxf4 {[%emt 0:00:31]} 21. Bxf4 {[%emt 0:00:08]} Bg6 {[%emt 0:00:32]} 22. Bd5+ {[%emt 0:01:55]} Kg7 {[%emt 0:00:22]} 23. Be6 {[%emt 0:05:45]} Bxc2 {[%emt 0:00:37]} 24. Bxc8 {[%emt 0:00:37]} Rxc8 {[%emt 0:00:11]} 25. Re6 {[%emt 0:01:01]} Bf5 {[%emt 0:00:44]} 26. Rd6 {[%emt 0:00:23]} Rd8 {[%emt 0:00:35]} 27. Rxd8 {[%emt 0:00:33]} Nxd8 {[%emt 0:00:01]} 28. Re1 {[%emt 0:00:57]} Nc6 {[%emt 0:00:49]} 29. Kf2 {[%emt 0:00:26]} d3 {[%emt 0:00:39]} 30. Ke3 {[%emt 0:00:42]} Kf7 {[%emt 0:01:03]} 1-0

[Event "Icelandic Open 2019"]
[Site "Akureyri"]
[Date "2019.05.25"]
[Round "1.5"]
[White "Kjartansson, Gudmundur"]
[Black "Valtysson, Thor"]
[Result "1-0"]
[ECO "D94"]
[WhiteElo "2454"]
[BlackElo "1896"]
[Annotator "ChessBase"]
[PlyCount "47"]
[EventDate "2019.05.25"]
[EventType "swiss"]
[EventCountry "ISL"]
[SourceTitle "playchess.com"]
[Source "ChessBase"]
[SourceQuality "1"]
[TimeControl "40/5400+30:1800+30"]

1. c4 {[%emt 0:00:00]} c6 {[%emt 0:00:00]} 2. d4 {[%emt 0:00:28]} d5 {[%emt 0:00:00]} 3. Nc3 {[%emt 0:00:39]} Nf6 {[%emt 0:00:07]} 4. e3 {[%emt 0:00:17]} g6 {[%emt 0:01:41]} 5. Nf3 {[%emt 0:00:55]} Bg7 {[%emt 0:00:10]} 6. Be2 {[%emt 0:02:56]} O-O {[%emt 0:00:47]} 7. O-O {[%emt 0:00:06]} Bg4 {[%emt 0:02:35]} 8. h3 {[%emt 0:05:34]} Bxf3 {[%emt 0:00:25]} 9. Bxf3 {[%emt 0:00:04]} dxc4 {[%emt 0:05:03]} 10. b3 {[%emt 0:09:16]} cxb3 {[%emt 0:01:51]} 11. Qxb3 {[%emt 0:00:22]} Qb6 {[%emt 0:04:43]} 12. Rb1 {[%emt 0:05:36]} Nbd7 {[%emt 0:07:02]} 13. Qa3 {[%emt 0:03:06]} Qc7 {[%emt 0:00:19]} 14. Qxe7 {[%emt 0:00:30]} Rfe8 {[%emt 0:00:36]} 15. Qa3 {[%emt 0:01:13]} Bf8 {[%emt 0:07:02]} 16. Qb3 {[%emt 0:00:59]} Rab8 {[%emt 0:02:50]} 17. e4 {[%emt 0:02:53]} c5 {[%emt 0:06:18]} 18. Nb5 {[%emt 0:16:10]} Qb6 {[%emt 0:03:05]} 19. Bf4 {[%emt 0:01:23]} Rbc8 {[%emt 0:02:28]} 20. Qa4 {[%emt 0:13:40]} Qa6 {[%emt 0:11:10]} 21. Qxa6 {[%emt 0:00:26]} bxa6 {[%emt 0:00:02]} 22. Nc7 {[%emt 0:04:52]} Red8 {[%emt 0:01:46]} 23. d5 {[%emt 0:01:20]} Nb6 {[%emt 0:02:21]} 24. Nxa6 {[%emt 0:03:17]} 1-0

[Event "Icelandic Open 2019"]
[Site "Akureyri"]
[Date "2019.05.25"]
[Round "1.8"]
[White "Briem, Benedikt"]
[Black "Thorhallsson, Throstur"]
[Result "0-1"]
[ECO "D93"]
[WhiteElo "1811"]
[BlackElo "2435"]
[Annotator "ChessBase"]
[PlyCount "58"]
[EventDate "2019.05.25"]
[EventType "swiss"]
[EventCountry "ISL"]
[SourceTitle "playchess.com"]
[Source "ChessBase"]
[SourceQuality "1"]
[TimeControl "40/5400+30:1800+30"]

1. d4 {[%emt 0:00:00]} d5 {[%emt 0:00:00]} 2. Bf4 {[%emt 0:00:00]} Nf6 {[%emt 0:00:01]} 3. e3 {[%emt 0:00:00]} g6 {[%emt 0:01:14]} 4. c4 {[%emt 0:00:49]} Bg7 {[%emt 0:01:23]} 5. Nc3 {[%emt 0:00:25]} c6 {[%emt 0:03:24]} 6. Be2 {[%emt 0:00:55]} O-O {[%emt 0:03:25]} 7. Nf3 {[%emt 0:00:42]} dxc4 {[%emt 0:08:43]} 8. Bxc4 {[%emt 0:01:52]} Nbd7 {[%emt 0:01:28]} 9. O-O {[%emt 0:00:40]} b5 {[%emt 0:05:23]} 10. Bd3 {[%emt 0:02:26]} Bb7 {[%emt 0:03:36]} 11. Rc1 {[%emt 0:06:23]} a6 {[%emt 0:04:37]} 12. Ne4 {[%emt 0:08:34]} Rc8 {[%emt 0:01:21]} 13. b4 {[%emt 0:06:52]} Nd5 {[%emt 0:05:51]} 14. Qd2 {[%emt 0:04:41]} a5 {[%emt 0:07:41]} 15. bxa5 {[%emt 0:02:03]} Ra8 {[%emt 0:01:30]} 16. Bg5 {[%emt 0:02:23]} h6 {[%emt 0:02:54]} 17. Bh4 {[%emt 0:01:08]} Qxa5 {[%emt 0:02:31]} 18. Qxa5 {[%emt 0:01:15]} Rxa5 {[%emt 0:00:02]} 19. Bb1 {[%emt 0:00:37]} b4 {[%emt 0:15:13]} 20. Nfd2 {[%emt 0:10:24]} Ra7 {[%emt 0:00:00]} 21. Nc4 {[%emt 0:05:11]} Ba6 {[%emt 0:00:47]} 22. Rfd1 {[%emt 0:04:18]} f5 {[%emt 0:02:14]} 23. Ned2 {[%emt 0:00:52]} g5 {[%emt 0:02:11]} 24. Bg3 {[%emt 0:01:48]} Bb5 {[%emt 0:00:59]} 25. Be5 {[%emt 0:01:39]} Bxe5 {[%emt 0:01:43]} 26. dxe5 {[%emt 0:02:07]} Nc3 {[%emt 0:00:38]} 27. Re1 {[%emt 0:00:38]} Nxa2 {[%emt 0:02:33]} 28. Bxa2 {[%emt 0:00:56]} Rxa2 {[%emt 0:00:02]} 29. Nb3 {[%emt 0:00:57]} Bxc4 {[%emt 0:00:45]} 0-1

[Event "Icelandic Open 2019"]
[Site "Akureyri"]
[Date "2019.05.25"]
[Round "1.9"]
[White "Gretarsson, Helgi Ass"]
[Black "Eiriksson, Sigurdur"]
[Result "1-0"]
[ECO "E76"]
[WhiteElo "2433"]
[BlackElo "1811"]
[Annotator "RC"]
[PlyCount "71"]
[EventDate "2019.05.25"]
[EventType "swiss"]
[EventCountry "ISL"]
[SourceTitle "playchess.com"]
[Source "ChessBase"]
[SourceQuality "1"]
[TimeControl "40/5400+30:1800+30"]

1. d4 {[%emt 0:00:00]} Nf6 {[%emt 0:00:00]} 2. c4 {[%emt 0:00:00]} g6 {[%emt 0:00:16]} 3. Nc3 {[%emt 0:00:00]} Bg7 {[%emt 0:00:14]} 4. e4 {[%emt 0:01:05]} d6 {[%emt 0:00:21]} 5. f4 {[%emt 0:00:10]} O-O {[%emt 0:00:29]} 6. Nf3 {[%emt 0:00:04]} a6 {[%emt 0:03:09]} 7. Bd3 {[%emt 0:02:05]} c6 {[%emt 0:00:36]} 8. e5 {[%emt 0:21:53]} Nfd7 {[%emt 0:05:48]} 9. Qe2 {[%emt 0:27:39]} b5 {[%emt 0:07:00]} 10. e6 {[%emt 0:20:12]} fxe6 {[%emt 0:05:22]} 11. h4 {[%emt 0:00:17]} Nf6 {[%emt 0:01:05]} 12. h5 {[%emt 0:06:37]} e5 {[%emt 0:10:10]} 13. hxg6 {[%emt 0:01:06]} exd4 {[%emt 0:01:26]} 14. gxh7+ {[%emt 0:01:46]} Kf7 {[%emt 0:02:05]} 15. Ng5+ {[%emt 0:01:45]} Ke8 {[%emt 0:00:10]} 16. Bg6+ {[%emt 0:00:13]} Kd7 {[%emt 0:00:12]} 17. Ne6 {[%emt 0:00:11]} dxc3 {[%emt 0:01:56]} 18. Nxd8 {[%emt 0:00:31]} Kxd8 {[%emt 0:00:10]} 19. Be3 {[%emt 0:01:51]} Bg4 {[%emt 0:00:52]} 20. Qc2 {[%emt 0:04:56]} cxb2 {[%emt 0:00:50]} 21. Rb1 {[%emt 0:01:27]} Nbd7 {[%emt 0:01:06]} 22. Rxb2 {[%emt 0:00:17]} Rc8 {[%emt 0:01:39]} 23. Qd2 {[%emt 0:01:03]} Be6 {[%emt 0:01:18]} 24. cxb5 {[%emt 0:03:06]} axb5 {[%emt 0:00:58]} 25. a4 {[%emt 0:00:10]} Nd5 {[%emt 0:00:30]} 26. Bd4 {[%emt 0:00:14]} N7f6 {[%emt 0:01:05]} 27. axb5 {[%emt 0:03:32]} c5 {[%emt 0:01:54]} 28. f5 {[%emt 0:00:17]} Bd7 {[%emt 0:00:38]} 29. Qa5+ {[%emt 0:00:25]} Rc7 {[%emt 0:00:39]} 30. b6 {[%emt 0:01:31]} Rb7 {[%emt 0:01:02]} 31. Qa6 {[%emt 0:00:17]} Bc8 {[%emt 0:00:24]} 32. Bf2 {[%emt 0:00:29]} Ne4 {[%emt 0:01:09]} 33. Qd3 {[%emt 0:00:35]} Nxf2 {[%emt 0:07:10]} 34. Qxd5 {[%emt 0:00:35]} Nxh1 {[%emt 0:00:45]} 35. Qg8 {[%emt 0:00:10]} Bc3+ {[%emt 0:01:34]} 36. Kd1 {[%emt 0:00:15]} 1-0

[Event "Icelandic Open 2019"]
[Site "Akureyri"]
[Date "2019.05.25"]
[Round "1.10"]
[White "Stefansson, Vignir Vatnar"]
[Black "Leosson, Atli Johann"]
[Result "1-0"]
[ECO "D35"]
[WhiteElo "2291"]
[BlackElo "1790"]
[Annotator "ChessBase"]
[PlyCount "25"]
[EventDate "2019.05.25"]
[EventType "swiss"]
[EventCountry "ISL"]
[SourceTitle "playchess.com"]
[Source "ChessBase"]
[SourceQuality "1"]
[TimeControl "40/5400+30:1800+30"]

1. d4 {[%emt 0:00:00]} d5 {[%emt 0:00:00]} 2. c4 {[%emt 0:00:00]} c6 {[%emt 0:00:06]} 3. Nc3 {[%emt 0:00:00]} Nf6 {[%emt 0:00:14]} 4. cxd5 {[%emt 0:00:00]} Nxd5 {[%emt 0:00:36]} 5. e4 {[%emt 0:00:45]} Nxc3 {[%emt 0:03:38]} 6. bxc3 {[%emt 0:00:06]} e6 {[%emt 0:01:14]} 7. Nf3 {[%emt 0:00:27]} Nd7 {[%emt 0:01:02]} 8. Bd3 {[%emt 0:00:51]} Be7 {[%emt 0:07:16]} 9. O-O {[%emt 0:00:14]} c5 {[%emt 0:03:20]} 10. Bf4 {[%emt 0:01:52]} O-O {[%emt 0:09:34]} 11. d5 {[%emt 0:00:18]} exd5 {[%emt 0:02:00]} 12. exd5 {[%emt 0:00:05]} Nf6 {[%emt 0:01:15]} 13. d6 {[%emt 0:02:00]} 1-0

[Event "Icelandic Open 2019"]
[Site "Akureyri"]
[Date "2019.05.25"]
[Round "1.11"]
[White "Stefansson, Vignir Vatnar"]
[Black "Leosson, Atli Johann"]
[Result "*"]
[ECO "A45"]
[WhiteElo "2291"]
[BlackElo "1790"]
[Annotator "NA"]
[PlyCount "21"]
[EventDate "2019.05.25"]
[EventType "swiss"]
[EventCountry "ISL"]
[SourceTitle "playchess.com"]
[Source "ChessBase"]
[SourceQuality "1"]
[TimeControl "40/5400+30:1800+30"]

1. d4 {[%emt 0:00:00]} Nf6 {[%emt 0:00:00]} 2. Bg5 {[%emt 0:00:00]} e6 {[%emt 0:00:29]} 3. e4 {[%emt 0:00:15]} h6 {[%emt 0:00:08]} 4. Bxf6 {[%emt 0:00:15]} Qxf6 {[%emt 0:00:09]} 5. Nc3 {[%emt 0:00:35]} Bb4 {[%emt 0:00:22]} 6. Qd2 {[%emt 0:00:33]} b6 {[%emt 0:03:23]} 7. a3 {[%emt 0:09:44]} Bxc3 {[%emt 0:03:08]} 8. Qxc3 {[%emt 0:00:35]} Nc6 {[%emt 0:00:20]} 9. O-O-O {[%emt 0:08:41]} Bb7 {[%emt 0:02:59]} 10. Nf3 {[%emt 0:10:54]} O-O-O {[%emt 0:01:43]} 11. Qe3 {[%emt 0:08:38]} *

[Event "Icelandic Open 2019"]
[Site "Akureyri"]
[Date "2019.05.25"]
[Round "1.12"]
[White "Finnsson, Johann Arnar"]
[Black "Gislason, Gudmundur"]
[Result "0-1"]
[ECO "A36"]
[WhiteElo "1789"]
[BlackElo "2288"]
[Annotator "ChessBase"]
[PlyCount "62"]
[EventDate "2019.05.25"]
[EventType "swiss"]
[EventCountry "ISL"]
[SourceTitle "playchess.com"]
[Source "ChessBase"]
[SourceQuality "1"]
[TimeControl "40/5400+30:1800+30"]

1. c4 {[%emt 0:00:00]} c5 {[%emt 0:00:00]} 2. g3 {[%emt 0:00:00]} g6 {[%emt 0:00:00]} 3. Bg2 {[%emt 0:00:04]} Bg7 {[%emt 0:00:00]} 4. e4 {[%emt 0:01:54]} Nc6 {[%emt 0:00:06]} 5. Ne2 {[%emt 0:00:11]} Rb8 {[%emt 0:03:00]} 6. Nbc3 {[%emt 0:00:41]} a6 {[%emt 0:00:33]} 7. O-O {[%emt 0:05:30]} b5 {[%emt 0:03:10]} 8. d3 {[%emt 0:00:18]} h5 {[%emt 0:05:30]} 9. h4 {[%emt 0:03:31]} d6 {[%emt 0:01:25]} 10. f4 {[%emt 0:02:28]} Bg4 {[%emt 0:01:25]} 11. Qc2 {[%emt 0:08:03]} Qc8 {[%emt 0:04:31]} 12. f5 {[%emt 0:04:28]} gxf5 {[%emt 0:08:41]} 13. exf5 {[%emt 0:00:34]} Nb4 {[%emt 0:00:22]} 14. Qd2 {[%emt 0:00:28]} Be5 {[%emt 0:02:08]} 15. a3 {[%emt 0:03:15]} Nc6 {[%emt 0:00:07]} 16. Qe1 {[%emt 0:08:45]} Nf6 {[%emt 0:01:19]} 17. cxb5 {[%emt 0:02:44]} axb5 {[%emt 0:00:13]} 18. Bf4 {[%emt 0:00:32]} Rg8 {[%emt 0:03:37]} 19. Bxe5 {[%emt 0:11:47]} dxe5 {[%emt 0:00:48]} 20. Qf2 {[%emt 0:03:56]} Bxe2 {[%emt 0:15:01]} 21. Nxe2 {[%emt 0:01:20]} Na5 {[%emt 0:03:06]} 22. Rac1 {[%emt 0:01:02]} Nb3 {[%emt 0:00:22]} 23. Rc2 {[%emt 0:01:36]} Ng4 {[%emt 0:04:30]} 24. Qf3 {[%emt 0:00:34]} Kf8 {[%emt 0:02:20]} 25. Bh3 {[%emt 0:07:13]} Qd8 {[%emt 0:06:39]} 26. Qe4 {[%emt 0:02:58]} Qd6 {[%emt 0:00:46]} 27. Bxg4 {[%emt 0:02:48]} Rxg4 {[%emt 0:00:17]} 28. Qe3 {[%emt 0:00:04]} Nd4 {[%emt 0:01:29]} 29. Rd2 {[%emt 0:03:49]} e4 {[%emt 0:01:36]} 30. dxe4 {[%emt 0:08:18]} Nxe2+ {[%emt 0:00:18]} 31. Qxe2 {[%emt 0:00:08]} Qxg3+ {[%emt 0:00:13]} 0-1

[Event "Icelandic Open 2019"]
[Site "Akureyri"]
[Date "2019.05.25"]
[Round "1.13"]
[White "Jonsson, Olafur Gisli"]
[Black "Karlsson, Mikael Johann"]
[Result "0-1"]
[ECO "E12"]
[WhiteElo "1771"]
[BlackElo "2146"]
[Annotator "NA"]
[PlyCount "68"]
[EventDate "2019.05.25"]
[EventType "swiss"]
[EventCountry "ISL"]
[SourceTitle "playchess.com"]
[Source "ChessBase"]
[SourceQuality "1"]
[TimeControl "40/5400+30:1800+30"]

1. d4 {[%emt 0:00:00]} Nf6 {[%emt 0:00:00]} 2. Nf3 {[%emt 0:00:00]} b6 {[%emt 0:00:48]} 3. c4 {[%emt 0:00:34]} e6 {[%emt 0:00:09]} 4. a3 {[%emt 0:00:38]} Bb7 {[%emt 0:00:10]} 5. Nc3 {[%emt 0:00:12]} d6 {[%emt 0:05:11]} 6. Qc2 {[%emt 0:02:21]} c5 {[%emt 0:07:04]} 7. e3 {[%emt 0:10:35]} Nbd7 {[%emt 0:03:31]} 8. Be2 {[%emt 0:03:18]} Be7 {[%emt 0:02:42]} 9. O-O {[%emt 0:00:18]} O-O {[%emt 0:00:07]} 10. Rd1 {[%emt 0:03:49] E12: Queen's Indian: Unusual White 4th moves, 4 a3, 4 Nc3 Bb7 5 a3 and 4 Nc3 Bb7} cxd4 {[%emt 0:04:16]} 11. Nxd4 {[%emt 0:06:07]} a6 {[%emt 0:00:13]} 12. b3 $146 {[%emt 0:02:16]} ({Predecessor:} 12. Bd2 Rc8 13. Rac1 Rc7 14. b3 Qa8 {1-0 (48) Jacobs,J-Brustkern,J (2250) Germany 1992}) 12... Rc8 {[%emt 0:01:17]} 13. Bb2 {[%emt 0:01:54]} Qc7 {[%emt 0:03:05]} 14. Rac1 {[%emt 0:01:39]} Rfd8 {[%emt 0:03:23]} 15. Bf3 {[%emt 0:07:56]} Bf8 {[%emt 0:07:51]} 16. Ne4 {[%emt 0:07:45]} e5 {[%emt 0:14:21]} 17. Nf5 {[%emt 0:13:46]} Nxe4 {[%emt 0:08:05]} 18. Bxe4 {[%emt 0:01:59]} Bxe4 {[%emt 0:01:44]} 19. Qxe4 {[%emt 0:01:23]} g6 {[%emt 0:00:25]} 20. Qg4 {[%emt 0:05:23]} Nc5 {[%emt 0:01:54]} 21. b4 {[%emt 0:01:59]} Na4 {[%emt 0:03:54]} 22. Ba1 {[%emt 0:00:24]} b5 {[%emt 0:00:59]} 23. c5 {[%emt 0:03:58]} dxc5 {[%emt 0:00:40]} 24. f4 {[%emt 0:01:07]} f6 {[%emt 0:12:24]} 25. fxe5 $11 {[%emt 0:03:00]} fxe5 {[%emt 0:00:49]} 26. Qg5 {[%emt 0:02:38]} Rxd1+ {[%emt 0:03:21]} 27. Rxd1 {[%emt 0:00:07]} Re8 {[%emt 0:01:21]} 28. Rd5 {[%emt 0:05:05]} cxb4 {[%emt 0:03:40]} 29. Rxe5 {[%emt 0:07:34]} Rxe5 {[%emt 0:00:11]} 30. Bxe5 {[%emt 0:00:13]} Qc1+ {[%emt 0:00:07]} 31. Kf2 {[%emt 0:00:39]} Qc2+ {[%emt 0:00:04]} 32. Kg3 {[%emt 0:01:37]} Qxf5 {[%emt 0:00:05]} 33. Qxf5 {[%emt 0:01:14]} gxf5 {[%emt 0:00:03]} 34. axb4 {[%emt 0:00:24]} Kf7 {[%emt 0:00:05]} 0-1

[Event "Icelandic Open 2019"]
[Site "Akureyri"]
[Date "2019.05.25"]
[Round "1.14"]
[White "Thorhallsson, Simon"]
[Black "Halldorsson, Hjorleifur"]
[Result "1-0"]
[ECO "A01"]
[WhiteElo "2184"]
[BlackElo "1779"]
[Annotator "ChessBase"]
[PlyCount "55"]
[EventDate "2019.05.25"]
[EventType "swiss"]
[EventCountry "ISL"]
[SourceTitle "playchess.com"]
[Source "ChessBase"]
[SourceQuality "1"]
[TimeControl "40/5400+30:1800+30"]

1. b3 {[%emt 0:00:00]} e5 {[%emt 0:00:21]} 2. Bb2 {[%emt 0:00:00]} Nc6 {[%emt 0:00:43]} 3. e3 {[%emt 0:00:02]} d5 {[%emt 0:01:02]} 4. Bb5 {[%emt 0:00:33]} e4 {[%emt 0:05:34]} 5. d3 {[%emt 0:03:57]} Bf5 {[%emt 0:11:29]} 6. Nc3 {[%emt 0:06:35]} Nf6 {[%emt 0:05:13]} 7. dxe4 {[%emt 0:03:17]} dxe4 {[%emt 0:00:49]} 8. Nge2 {[%emt 0:05:35]} Be7 {[%emt 0:03:24]} 9. h3 {[%emt 0:01:25]} Bd7 {[%emt 0:05:40]} 10. Ng3 {[%emt 0:02:05]} a6 {[%emt 0:00:46]} 11. Be2 {[%emt 0:00:26]} O-O {[%emt 0:06:27]} 12. O-O {[%emt 0:05:41]} Be6 {[%emt 0:08:53]} 13. Ncxe4 {[%emt 0:01:02]} Nxe4 {[%emt 0:00:12]} 14. Nxe4 {[%emt 0:00:11]} Qe8 {[%emt 0:00:52]} 15. c4 {[%emt 0:05:57]} Rd8 {[%emt 0:03:31]} 16. Qc1 {[%emt 0:04:59]} f5 {[%emt 0:01:00]} 17. Ng3 {[%emt 0:00:28]} Bg5 {[%emt 0:01:35]} 18. Nh5 {[%emt 0:01:47]} Bh6 {[%emt 0:02:13]} 19. Bf3 {[%emt 0:02:01]} Rf7 {[%emt 0:05:39]} 20. Rd1 {[%emt 0:02:43]} Rfd7 {[%emt 0:00:30]} 21. Rxd7 {[%emt 0:00:38]} Rxd7 {[%emt 0:00:28]} 22. Nf4 {[%emt 0:00:36]} Bxf4 {[%emt 0:00:35]} 23. exf4 {[%emt 0:00:08]} Nd8 {[%emt 0:04:57]} 24. Qc3 {[%emt 0:00:46]} Qf7 {[%emt 0:00:47]} 25. Re1 {[%emt 0:00:26]} c6 {[%emt 0:00:29]} 26. g3 {[%emt 0:03:03]} Re7 {[%emt 0:05:32]} 27. Qb4 {[%emt 0:04:27]} Qe8 {[%emt 0:02:05]} 28. Bh5 {[%emt 0:02:28]} 1-0

[Event "Icelandic Open 2019"]
[Site "Akureyri"]
[Date "2019.05.25"]
[Round "1.15"]
[White "Ptacnikova, Lenka"]
[Black "Danielsson, Sigurdur"]
[Result "1-0"]
[ECO "A20"]
[WhiteElo "2145"]
[BlackElo "1727"]
[Annotator "NA"]
[PlyCount "59"]
[EventDate "2019.05.25"]
[EventType "swiss"]
[EventCountry "ISL"]
[SourceTitle "playchess.com"]
[Source "ChessBase"]
[SourceQuality "1"]
[TimeControl "40/5400+30:1800+30"]

1. c4 {[%emt 0:00:00]} e5 {[%emt 0:00:00]} 2. g3 {[%emt 0:00:00]} c6 {[%emt 0:00:00]} 3. d4 {[%emt 0:00:01]} exd4 {[%emt 0:00:04]} 4. Qxd4 {[%emt 0:00:05]} Nf6 {[%emt 0:00:11]} 5. Nf3 {[%emt 0:06:19]} Bb4+ {[%emt 0:00:28]} 6. Nc3 {[%emt 0:01:36]} Bxc3+ {[%emt 0:01:29]} 7. Qxc3 {[%emt 0:00:18]} d5 {[%emt 0:00:21]} 8. cxd5 {[%emt 0:00:38]} cxd5 {[%emt 0:00:58]} 9. Bg5 {[%emt 0:03:18]} Nc6 {[%emt 0:00:29]} 10. Bg2 {[%emt 0:08:58]} Be6 {[%emt 0:01:28]} 11. Bxf6 {[%emt 0:02:55]} gxf6 {[%emt 0:00:23]} 12. O-O {[%emt 0:01:16]} Rc8 {[%emt 0:00:15]} 13. Rfd1 {[%emt 0:02:53]} Qe7 {[%emt 0:03:09]} 14. Nd4 {[%emt 0:08:06]} h5 {[%emt 0:02:40]} 15. h4 {[%emt 0:05:57]} Ne5 {[%emt 0:02:29]} 16. Qa5 {[%emt 0:00:45]} b6 {[%emt 0:00:24]} 17. Qb5+ {[%emt 0:01:07]} Qd7 {[%emt 0:01:46]} 18. Rac1 {[%emt 0:04:04]} O-O {[%emt 0:04:38]} 19. Qxd7 {[%emt 0:01:04]} Nxd7 {[%emt 0:00:04]} 20. Bf3 {[%emt 0:02:22]} Ne5 {[%emt 0:01:18]} 21. Bxh5 {[%emt 0:00:26]} Rc4 {[%emt 0:00:19]} 22. b3 {[%emt 0:00:48]} Rc5 {[%emt 0:00:23]} 23. f4 {[%emt 0:09:14]} Bg4 {[%emt 0:03:22]} 24. fxe5 {[%emt 0:08:35]} Bxh5 {[%emt 0:00:31]} 25. exf6 {[%emt 0:02:39]} Re8 {[%emt 0:00:28]} 26. Kf2 {[%emt 0:00:58]} Re4 {[%emt 0:00:44]} 27. Rb1 {[%emt 0:05:24]} Bg4 {[%emt 0:01:27]} 28. Rd2 {[%emt 0:00:31]} Rc3 {[%emt 0:00:34]} 29. Rbd1 {[%emt 0:01:13]} Ree3 {[%emt 0:00:20]} 30. Ke1 {[%emt 0:03:15]} 1-0